Department,Expense Area,Date,Supplier,Transaction Number,Amount,Expense Type
Home Office,DDaT - Digital Data & Technology,11/04/2022,DAMA UK,4-DDaT - Digital Data & Technology-780,780,Certified Data Management Professional�(Cdmp) Training Course For Neil Cholerton (G6 Cs)
Home Office,DG - Delivery,05/04/2022,RD CHAUFFEUR SERVICES,7-DG - Delivery-6825,682.5,Vehicles/ Chauffeured services
Home Office,HMPO - Her Majesty's Passport Office,01/04/2022,AMAZON,0-HMPO - Her Majesty's Passport Office-50059,500.59,Tv Stands For For Tv Screens To Be Put In The Glasgow Meeting Rooms
Home Office,HMPO - Her Majesty's Passport Office,07/04/2022,ICO.ORG.UK,1-HMPO - Her Majesty's Passport Office-2900,2900,Yearly Payment To Ico - Card Lifted To Purchase At National Level
Home Office,HMPO - Her Majesty's Passport Office,15/04/2022,DIGITAL ID,2-HMPO - Her Majesty's Passport Office-132654,1326.54,Requested By Estates Eo And Confirmed By Estates Heo Due To Large Number Of New Starters. Not Available On Basware And Smartcard Best Supplier And Previously Used. Authorised For Gpc Card Use By Procurement Heo Vd.
Home Office,HMPO - Her Majesty's Passport Office,25/04/2022,CARTRIDGEPEOPLE,3-HMPO - Her Majesty's Passport Office-57999,579.99,Shredder For Rsu Team - Specialist Need
Home Office,HSG - Homeland Security Group,08/04/2022,SAFE SERVICE LOCKER SE,5-HSG - Homeland Security Group-56112,561.12,Locker Number Face Plates For Hsg Laptop Lockers In 2Ms
Home Office,PSG - Public Safety Group,05/04/2022,BYBALLARD,80-PSG - Public Safety Group-635,635,Payment For Photographs Of The Domestic Abuse Commissioner That We Needed For Comms Purposes
Home Office,UKBE - UK Borders & Enforcement,01/04/2022,ARGOS LIMITED,9-UKBE - UK Borders & Enforcement-69295,692.95,"Furniture (Reclining Chair) For Office, Unavailable Through Basware"
Home Office,UKBE - UK Borders & Enforcement,01/04/2022,ARGOS LIMITED,10-UKBE - UK Borders & Enforcement-69295,692.95,Furniture For Rest-Room Facilities At Border Force Operational Office
Home Office,UKBE - UK Borders & Enforcement,01/04/2022,HOTEL HOLIDAY INN,12-UKBE - UK Borders & Enforcement-77396,773.96,"Conference Room For Undertaking Polygraph Tests, Oda-Mw-Am-Dr-Polygraphs"
Home Office,UKBE - UK Borders & Enforcement,01/04/2022,JOHNLEWIS,11-UKBE - UK Borders & Enforcement-93695,936.95,To Purchase Bedding For Our Cutters. Goods Not Available On Basware Or Any Other Ho Framework.
Home Office,UKBE - UK Borders & Enforcement,04/04/2022,Hotel at Booking.com,15-UKBE - UK Borders & Enforcement-53278,532.78,Op Wirebrick - Accommodation
Home Office,UKBE - UK Borders & Enforcement,04/04/2022,Hotel at Booking.com,16-UKBE - UK Borders & Enforcement-794,794,Op Wirebrick - Accommodation
Home Office,UKBE - UK Borders & Enforcement,04/04/2022,PRODUCTOS MEDICINALES,14-UKBE - UK Borders & Enforcement-6582,658.2,Balaclavas. Accrual Agreed Oda-Mw-Am-Dr_Dtcn_Equipment
Home Office,UKBE - UK Borders & Enforcement,04/04/2022,SCREWFIX DIRECT,13-UKBE - UK Borders & Enforcement-6499,649.9,"Tools - Advised By Training Experts For Border Force National Deep Rummage Training. Donated To Anti-Narcotics Police, Ecuador."
Home Office,UKBE - UK Borders & Enforcement,05/04/2022,AMAZON,18-UKBE - UK Borders & Enforcement-51929999999999995,519.3,"10 X Retractable Lanyard I.D Holder, Required For All Handlers, 10 X 500 Pack Poo Bags Required For Disposal Of All Dog Faeces, 10 X Anigene Disinfectant Required For Every Day Cleaning Of All Kennels And Areas Within Complex"
Home Office,UKBE - UK Borders & Enforcement,05/04/2022,WILLETT HOUSE VETS LIMITED,17-UKBE - UK Borders & Enforcement-81727,8172.7,Vet Bill - Cost Was Quite High Due To One Of Our Dogs Being Very Ill 
Home Office,UKBE - UK Borders & Enforcement,06/04/2022,AMAZON,21-UKBE - UK Borders & Enforcement-158412,1584.12,Television And Ladders
Home Office,UKBE - UK Borders & Enforcement,06/04/2022,MEDIVET - FAYGATE,19-UKBE - UK Borders & Enforcement-59197,591.97,Vet Fees For Dog In Training 
Home Office,UKBE - UK Borders & Enforcement,06/04/2022,MEDIVET - FAYGATE,20-UKBE - UK Borders & Enforcement-65741,657.41,Vet Fees For Dogs In Training 
Home Office,UKBE - UK Borders & Enforcement,06/04/2022,PIVOTAL PAY,22-UKBE - UK Borders & Enforcement-996,996,Courier For Cash Run X2 (7Th And 13Th April 2022) From Natwest Bank Croydon To Heathrow
Home Office,UKBE - UK Borders & Enforcement,07/04/2022,1STOPTIONSAFETY,23-UKBE - UK Borders & Enforcement-8004,800.4,Mandatory Business Course
Home Office,UKBE - UK Borders & Enforcement,07/04/2022,1STOPTIONSAFETY,24-UKBE - UK Borders & Enforcement-8004,800.4,Mandatory Business Course
Home Office,UKBE - UK Borders & Enforcement,07/04/2022,ASL LOCKERS,27-UKBE - UK Borders & Enforcement-9888,988.8,8 X Probe Express Lockers (1 Door) For New Officers Joining The Rtf Team At Gatwick. The Lockers Available On Metis Are Either Too Small Or Include Additional Fixed Partitioning/Shelving Making Them Unsuitable For The Storage Of Bulky Items Of Kit.
Home Office,UKBE - UK Borders & Enforcement,07/04/2022,ExpressTest,28-UKBE - UK Borders & Enforcement-595,595,5 X Pcr Tests In Relation To An Inbound Visit To The Uk For An Authorised Moroccan Program Of Activity.
Home Office,UKBE - UK Borders & Enforcement,07/04/2022,PP Intelligent eLearni,25-UKBE - UK Borders & Enforcement-6828,682.8,Fire Safety & Fire Extinguisher Training For Emergency Response Officers
Home Office,UKBE - UK Borders & Enforcement,07/04/2022,ROWANDISPLA,26-UKBE - UK Borders & Enforcement-840,840,"Purchase Of Cfi Embossed Shields, Lid And Tray Presentation Boxes And Prop Stands To Present To Key Stakeholders."
Home Office,UKBE - UK Borders & Enforcement,08/04/2022,1STOPTIONSAFETY,33-UKBE - UK Borders & Enforcement-552,552,Safe And Safe+ Refresher Training Course. Required For Travel To Certain Locations In My Region.
Home Office,UKBE - UK Borders & Enforcement,08/04/2022,AMAZON,32-UKBE - UK Borders & Enforcement-56779999999999995,567.8,4 X Dell Cables For Rcc - Needed To Use Two Screens. Unavailable On Basware.
Home Office,UKBE - UK Borders & Enforcement,08/04/2022,RYANAIR,30-UKBE - UK Borders & Enforcement-118918,1189.18,Air Travel For Four Volunteers Deployed Urgently To Poland And Romania In Support Of Ukrainian Crisis. Not Available On Ctm
Home Office,UKBE - UK Borders & Enforcement,08/04/2022,SOS OFFICE PANAMA CORP,31-UKBE - UK Borders & Enforcement-54505999999999995,545.06,Additional Payment As Retailer Originally Mis-Invoiced For Furniture.
Home Office,UKBE - UK Borders & Enforcement,08/04/2022,WOODCROFT VET GROUP WD,29-UKBE - UK Borders & Enforcement-8098,809.8,Vet Bills - for Dogs
Home Office,UKBE - UK Borders & Enforcement,11/04/2022,AMAZON,40-UKBE - UK Borders & Enforcement-1762,1762,Polaroid Film For Enrolment Of Arrivals At Western Jetfoil
Home Office,UKBE - UK Borders & Enforcement,11/04/2022,DATAPRO CIA.LIMITEDA,37-UKBE - UK Borders & Enforcement-51514,515.14,"5 X Printer Yellow Printer Toners - Donated To Anti-Narcotics Police, Ecuador."
Home Office,UKBE - UK Borders & Enforcement,11/04/2022,DATAPRO CIA.LIMITEDA,35-UKBE - UK Borders & Enforcement-53276,532.76,"5 X Printer Magenta Printer Toners - Donated To Anti-Narcotics Police, Ecuador."
Home Office,UKBE - UK Borders & Enforcement,11/04/2022,DATAPRO CIA.LIMITEDA,38-UKBE - UK Borders & Enforcement-53276,532.76,"5 X Printer Cyan Printer Toners - Donated To Anti-Narcotics Police, Ecuador."
Home Office,UKBE - UK Borders & Enforcement,11/04/2022,DATAPRO CIA.LIMITEDA,39-UKBE - UK Borders & Enforcement-53276,532.76,"1 X Cannon Printer Purchased - 5 Required However Only Four In Stock Until Now. Donated To Anti-Narcotics Police, Ecuador."
Home Office,UKBE - UK Borders & Enforcement,11/04/2022,DATAPRO CIA.LIMITEDA,36-UKBE - UK Borders & Enforcement-54807000000000005,548.07,"5 X Printer Black Printer Toners - Donated To Anti-Narcotics Police, Ecuador."
Home Office,UKBE - UK Borders & Enforcement,11/04/2022,SCREWFIX,34-UKBE - UK Borders & Enforcement-52798,527.98,2 X Xtend+Climb Aerospace Grade Aluminium Proseries S2 Telescopic Ladder 3.8
Home Office,UKBE - UK Borders & Enforcement,13/04/2022,1STOPTIONSAFETY,42-UKBE - UK Borders & Enforcement-8004,800.4,Mandatory Business Course 
Home Office,UKBE - UK Borders & Enforcement,13/04/2022,-KIWI-,43-UKBE - UK Borders & Enforcement-379584,3795.84,Op Wirebrick - Flights
Home Office,UKBE - UK Borders & Enforcement,13/04/2022,MEDIVET-GODSTONE,41-UKBE - UK Borders & Enforcement-1698,1698,Veterinary Specialist Referral
Home Office,UKBE - UK Borders & Enforcement,14/04/2022,MACHINE MART LIMITED,45-UKBE - UK Borders & Enforcement-92316,923.16,70 Wire Cutters
Home Office,UKBE - UK Borders & Enforcement,14/04/2022,MEDIVET-DOVER,44-UKBE - UK Borders & Enforcement-15694,1569.4,"Vet Bill For Consultations, Treatment And Medication For 3 Detector Dogs Including X-Rays, Subsequent Pictures And Analysis. Plus Comprehensive Lab Analysis For Bloods And Urine For Detector Dog"
Home Office,UKBE - UK Borders & Enforcement,15/04/2022,DEVON COUNTY AGRICULTU,50-UKBE - UK Borders & Enforcement-756,756,Large Order Of Evidence Bags For Op Altair Western Jet Foil
Home Office,UKBE - UK Borders & Enforcement,15/04/2022,N/A,46-UKBE - UK Borders & Enforcement-912,912,Emergency Water 3.6K - Stretched Over 4 Payments
Home Office,UKBE - UK Borders & Enforcement,15/04/2022,N/A,47-UKBE - UK Borders & Enforcement-912,912,Emergency Water 3.6K - Stretched Over 4 Payments
Home Office,UKBE - UK Borders & Enforcement,15/04/2022,N/A,48-UKBE - UK Borders & Enforcement-912,912,Emergency Water 3.6K - Stretched Over 4 Payments
Home Office,UKBE - UK Borders & Enforcement,15/04/2022,N/A,49-UKBE - UK Borders & Enforcement-912,912,Emergency Water 3.6K - Stretched Over 4 Payments
Home Office,UKBE - UK Borders & Enforcement,18/04/2022,UNIVERSEALK,51-UKBE - UK Borders & Enforcement-564,564,Property Seals For New Arrival Property Bags. For Use At Wjf And Manston By Ctc
Home Office,UKBE - UK Borders & Enforcement,19/04/2022,DEFIBSTORE LIMITED,52-UKBE - UK Borders & Enforcement-53279999999999995,532.8,New Defibrillator Pads For Defibrillator Machines (12 Sets) For Gatwick
Home Office,UKBE - UK Borders & Enforcement,20/04/2022,1STOPTIONSAFETY,55-UKBE - UK Borders & Enforcement-12204000000000001,1220.4,Official Safe & Safe+ Security Course In Preparation For An Ndfu Officer On An Official Visit As Approved By G7 P Minhas.
Home Office,UKBE - UK Borders & Enforcement,20/04/2022,ARCOK,54-UKBE - UK Borders & Enforcement-7182,718.2,30 Helmet Mounted Ear Defenders
Home Office,UKBE - UK Borders & Enforcement,20/04/2022,LVL-VRCC/SOUTHFIELDS,53-UKBE - UK Borders & Enforcement-2880,2880,"Consultation, General Anaesthetic, Mri Scan And Medication For Detector Dog Strike"
Home Office,UKBE - UK Borders & Enforcement,21/04/2022,AMAZON,57-UKBE - UK Borders & Enforcement-63687,636.87,Instant Camera Film - Instant Camera Pictures Required For All Individuals Arriving On Small Boats. Photos Attached To Paperwork Going To Either Manston Or Provided Accommodation.
Home Office,UKBE - UK Borders & Enforcement,21/04/2022,Sharp & Enright,56-UKBE - UK Borders & Enforcement-58044000000000005,580.44,"This Transaction Was For: X2 15M Towing Lines, X2 20M Towing Lines, X2 Bridles, X2 Heaving Lines, X8 Carabiners Small, X2 Large Carabiners, X2 Steel Rings"
Home Office,UKBE - UK Borders & Enforcement,22/04/2022,AMAZON,58-UKBE - UK Borders & Enforcement-57499,574.99,Radios - Rhib (Rigid Hull Inflatable Boat) To Cutter (Mother Ship For The Rhibs) Communication. Also Used On Cpv�S (Coastal Patrol Vessel) Communications.
Home Office,UKBE - UK Borders & Enforcement,22/04/2022,RYANAIR,59-UKBE - UK Borders & Enforcement-113942,1139.42,Op Wirebrick
Home Office,UKBE - UK Borders & Enforcement,25/04/2022,EQUIP4WORKK,61-UKBE - UK Borders & Enforcement-8304,830.4,Lectern For Freight Office Requested By S.O
Home Office,UKBE - UK Borders & Enforcement,25/04/2022,HANDLE-IT,63-UKBE - UK Borders & Enforcement-9168,916.8,Double Sided A Frame Window And Panel Trolley For Freight Office Authorised By S.O
Home Office,UKBE - UK Borders & Enforcement,25/04/2022,Hotel at Booking.com,64-UKBE - UK Borders & Enforcement-67862,678.62,Urgent Accommodation Booked For Staff Deployed Overseas And Not Available On Ctm
Home Office,UKBE - UK Borders & Enforcement,25/04/2022,MEGAKYWI,62-UKBE - UK Borders & Enforcement-71784,717.84,"Tools & Ppe- Advised By Training Experts For Border Force National Deep Rummage Training & Container Inspection Training Delivered In Ecuador. Donated To Anti-Narcotics Police, Ecuador."
Home Office,UKBE - UK Borders & Enforcement,25/04/2022,TARDISENVIRONMENTA,60-UKBE - UK Borders & Enforcement-555,555,Portaloo Purchase For Use Aboard Ctv Typhoon
Home Office,UKBE - UK Borders & Enforcement,25/04/2022,TARDISENVIRONMENTA,65-UKBE - UK Borders & Enforcement-555,555,50% Purchase Of Tardis Toilet For Typhoon
Home Office,UKBE - UK Borders & Enforcement,26/04/2022,Sharp & Enright,67-UKBE - UK Borders & Enforcement-500,500,"Payment For Chandlery Items For Ga/Gm Patrol Vessel ""Athena"""
Home Office,UKBE - UK Borders & Enforcement,26/04/2022,Sharp & Enright,68-UKBE - UK Borders & Enforcement-63801,638.01,"Payment For Chandlery Items For Ga/Gm Patrol Vessel ""Artemis"""
Home Office,UKBE - UK Borders & Enforcement,26/04/2022,SP SCRIPTUM SUPPLIES,69-UKBE - UK Borders & Enforcement-52788,527.88,Toner cartridges
Home Office,UKBE - UK Borders & Enforcement,26/04/2022,TARPAULINS DIRECT,66-UKBE - UK Borders & Enforcement-87255,872.55,Tarpaulins For Fence Line At Manston
Home Office,UKBE - UK Borders & Enforcement,27/04/2022,iZ Canterbury Cat,71-UKBE - UK Borders & Enforcement-639,639,Furniture Hire For Manston
Home Office,UKBE - UK Borders & Enforcement,27/04/2022,L. HENRIQUES 8 CIA. S.,70-UKBE - UK Borders & Enforcement-81663,816.63,"Tool Rucksacks And Tool Items- Advised By Training Experts For Border Force National Deep Rummage Training & Container Inspection Training. Delivered In Ecuador. Donated To Anti-Narcotics Police, Ecuador."
Home Office,UKBE - UK Borders & Enforcement,27/04/2022,ROWANDISPLA,72-UKBE - UK Borders & Enforcement-840,840,"Purchase Of Cfi Embossed Shields, Lid And Tray Presentation Boxes And Prop Stands To Present To Key Stakeholders."
Home Office,UKBE - UK Borders & Enforcement,28/04/2022,AMAZON,75-UKBE - UK Borders & Enforcement-50489,504.89,"9X Wheeled Holdalls, New Travel Bags For Whole Team."
Home Office,UKBE - UK Borders & Enforcement,28/04/2022,COPSHOPUK,77-UKBE - UK Borders & Enforcement-9623,962.3,Large Order Of Evidence Bags For Op Altair Western Jet Foil
Home Office,UKBE - UK Borders & Enforcement,28/04/2022,Sharp & Enright,73-UKBE - UK Borders & Enforcement-1000,1000,Lifejackets For New Officers Joining Border Force Inland And Coastal Team.
Home Office,UKBE - UK Borders & Enforcement,28/04/2022,Sharp & Enright,74-UKBE - UK Borders & Enforcement-1000,1000,Lifejackets For New Officers Joining Border Force Inland And Coastal Team.
Home Office,UKBE - UK Borders & Enforcement,28/04/2022,SQ SOUTH WEST MARITIM,76-UKBE - UK Borders & Enforcement-73614,736.14,Service For Pfd (Personal Floatation Device) Collars
Home Office,UKBE - UK Borders & Enforcement,29/04/2022,SHERATON,79-UKBE - UK Borders & Enforcement-50403,504.03,Urgent Hotel Booking For Staff Deployed Overseas Due To Return Flight To The Uk Being Cancelled
Home Office,UKBE - UK Borders & Enforcement,29/04/2022,WHITWORTH VETERINARY P,78-UKBE - UK Borders & Enforcement-50582,505.82,Vet Costs For Dog In Training. 
